bitfinex/quotes_SOLUSD_20220211
["timestamp","ask_amount","ask_price","bid_price","bid_amount"]
[1644613640501,15.3138,98.05,97.98,15.3129]
[1644613640701,34.60178682,98.049,97.981,5.101]
[1644613643603,34.60178682,98.049,97.98,15.3129]
[1644613646807,15.3151,98.04,97.961,23.5842]
[1644613647407,2.38366791,98.039,97.961,23.5842]
[1644613648210,15.3175,98.03,97.961,23.5842]
[1644613648411,40.48860163,98.029,97.942,5.101]
[1644613648612,42.87226954,98.029,97.942,5.101]
[1644613648911,2.38366791,98.028,97.942,5.101]
[1644613649137,2.38366791,98.028,97.927,1.42435738]
[1644613649314,2.38366791,98.028,97.942,23.3825]
[1644613649714,15.3216,98.01,97.942,23.3825]
[1644613649916,46.05670766,98.009,97.942,23.3825]
[1644613651812,46.05670766,98.009,97.943,5.103]
[1644613652712,46.05670766,98.009,97.95,15.3187]
[1644613653115,15.3188,98.02,97.95,15.3187]
[1644613654320,39.07840403,98.019,97.95,15.3187]
[1644613654716,38.57840403,98.019,97.95,15.3187]
[1644613661730,15.3468115,98.03,97.95,15.3187]
[1644613661933,0.0309115,98.04,97.97,15.3154]
[1644613662133,1.4321902,98.057,97.971,24.1056]
[1644613662430,52.5158017,98.06,97.971,24.1056]
[1644613662630,45.51383788,98.059,97.971,24.1056]
[1644613662831,15.3148,98.04,97.971,24.1056]
[1644613663030,44.40381234,98.039,97.971,24.1056]
[1644613663831,44.40381234,98.039,97.98,15.3141]
[1644613664032,44.40381234,98.039,97.971,24.1056]
[1644613664247,44.40381234,98.039,97.955,1.42435738]
[1644613664449,44.40381234,98.039,97.953,1.42435738]
[1644613665051,44.40381234,98.039,97.951,1.42435738]
[1644613665550,15.3158,98.03,97.95,15.3191]
[1644613665749,15.3158,98.03,97.942,24.1091]
[1644613668252,27.4658,98.03,97.942,24.1091]
[1644613670054,27.4658,98.03,97.926,1.42435738]
[1644613670256,15.3248,98.0,97.92,15.3239]
[1644613670457,15.3248,98.0,97.909,29.0603]
[1644613670458,41.98211637,97.999,97.914,1.42435738]
[1644613670656,41.98211637,97.999,97.915,5.104]
[1644613670855,41.98211637,97.999,97.914,5.104]
[1644613672266,41.42166377,97.979,97.91,5.104]
[1644613672467,48.62362443,97.959,97.91,5.104]
[1644613673469,48.62362443,97.959,97.881,5.105]
[1644613673870,15.3309,97.95,97.88,15.3299]
[1644613674069,15.3309,97.95,97.881,5.106]
[1644613674271,15.3309,97.95,97.88,15.3299]
[1644613679478,15.3269,97.96,97.88,15.3299]
[1644613679679,15.3269,97.96,97.9,15.3256]
[1644613679884,15.3269,97.96,97.881,5.106]
[1644613679885,46.8803,97.989,97.901,5.105]
[1644613680083,15.4539,98.0,97.879,6.52835738]
[1644613680286,15.4539,98.0,97.88,1.42435738]
[1644613680487,39.08415197,97.999,97.88,1.42435738]
[1644613680686,39.08415197,97.999,97.879,1.42435738]
[1644613680885,39.08415197,97.999,97.91,15.3249]
[1644613680886,41.9283361,97.979,97.91,15.3249]
[1644613682284,15.3253,97.97,97.9,15.3266]
[1644613685003,15.3253,97.97,97.89,15.328]
[1644613685504,15.3253,97.97,97.891,23.9216]
[1644613685908,15.3253,97.97,97.891,21.4216]
[1644613690419,15.3253,97.97,97.892,5.105]
[1644613690615,15.3253,97.97,97.891,26.5266]
[1644613690813,15.3253,97.97,97.891,21.4216]
[1644613694018,15.3253,97.97,97.9,15.327]
[1644613694218,41.9283361,97.979,97.9,15.327]
[1644613694417,41.9283361,97.979,97.901,7.48866791]
[1644613694621,0.0309115,98.01,97.906,113.0]
[1644613694820,12.15,98.05,97.907,54.83065738]
[1644613694821,0.0309115,98.03,97.907,54.83065738]
[1644613695019,0.0309115,98.02,97.912,1.42435738]
[1644613695222,51.1028115,98.02,97.92,15.3209]
[1644613695420,51.0719,98.02,97.92,15.3209]
[1644613695625,39.07356478,98.019,97.92,15.3209]
[1644613696022,2.38366791,98.018,97.92,15.3209]
[1644613696221,15.319,98.01,97.93,15.3217]
[1644613697021,2.38366791,98.009,97.93,15.3217]
[1644613697220,15.3184,98.01,97.931,2.38366791]
[1644613697422,36.68989687,98.019,97.95,15.3161]
[1644613698622,36.68989687,98.019,97.951,5.102]
[1644613698822,36.68989687,98.019,97.97,15.3143]
[1644613706150,15.3156,98.03,97.97,15.3143]
[1644613706350,0.0309115,98.04,97.97,15.3143]
[1644613706351,15.3444115,98.04,97.97,15.3143]
[1644613706553,0.0309115,98.06,97.971,5.101]
[1644613706751,51.0759115,98.07,97.99,15.3113]
[1644613706954,51.045,98.07,97.99,15.3113]
[1644613707153,44.11789115,98.069,97.99,15.3113]
[1644613707354,46.50155906,98.069,97.99,15.3113]
[1644613707552,44.11789115,98.069,97.99,15.3113]
[1644613708152,44.11789115,98.069,97.991,22.8692]
[1644613708352,44.11789115,98.069,98.01,15.3096]
[1644613709867,15.3106,98.06,98.01,15.3096]
[1644613710067,44.11789115,98.069,98.01,15.3096]
[1644613711371,15.3095,98.06,98.01,15.3096]
[1644613716373,15.3095,98.06,98.0,15.3105]
[1644613717580,44.11789115,98.069,98.0,15.3105]
[1644613718781,2.38366791,98.102,98.0,15.3105]
[1644613718782,15.3068,98.08,98.0,15.3105]
[1644613718984,15.3068,98.08,97.991,22.8692]
[1644613718985,2.38366791,98.102,98.03,15.3043]
[1644613719184,51.0214,98.11,98.031,24.3212]
[1644613719384,2.38366791,98.113,98.031,24.3212]
[1644613719885,37.76424927,98.112,98.031,24.3212]
[1644613720085,37.76424927,98.112,98.032,22.6375]
[1644613720486,37.76424927,98.112,98.04,15.304]
[1644613720685,2.38366791,98.144,98.04,15.304]
[1644613720885,2.38366791,98.144,98.033,5.098]
[1644613720886,1.4321902,98.151,98.041,5.097]
[1644613721086,1.4321902,98.153,98.034,5.097]
[1644613721292,3.81585811,98.155,98.034,7.48066791]
[1644613721494,3.81585811,98.155,98.035,2.38366791]
[1644613721687,15.2988,98.13,98.07,15.2983]
[1644613721887,35.59993606,98.129,98.07,15.2983]
[1644613722291,2.38366791,98.155,98.07,15.2983]
[1644613722488,15.76742808,98.161,98.071,23.1582]
[1644613722489,1.4321902,98.161,98.071,23.1582]
[1644613722688,2.38366791,98.166,98.072,24.3669]
[1644613722888,15.2945,98.16,98.09,15.2953]
[1644613723288,4.24469,98.159,98.09,15.2953]
[1644613723489,40.99907761,98.159,98.09,15.2953]
[1644613723689,4.24469,98.158,98.09,15.2953]
[1644613725494,36.75438761,98.159,98.09,15.2953]
[1644613726894,15.296,98.15,98.072,24.3669]
[1644613727095,15.296,98.15,98.051,5.096]
[1644613727293,15.296,98.15,97.983,2.84871476]
[1644613727294,2.38366791,98.149,98.041,51.7692]
[1644613727495,4.81000661,98.149,98.041,46.6732]
[1644613727914,14.27444156,98.157,98.041,46.6732]
[1644613727915,2.38366791,98.148,98.041,46.6732]
[1644613728816,15.3034,98.12,98.041,46.6732]
[1644613729018,47.9177458,98.119,98.042,5.097]
[1644613729218,50.30141371,98.119,98.042,5.097]
[1644613729416,2.38366791,98.118,98.042,5.097]
[1644613729818,15.3032,98.11,98.01,12.15]
[1644613730017,15.3032,98.11,98.0,51.0147]
[1644613730217,2.38366791,98.109,98.001,46.8931]
[1644613730620,2.38366791,98.109,98.002,5.099]
[1644613731717,15.3067,98.08,98.02,15.3059]
[1644613731919,2.38366791,98.109,98.021,5.098]
[1644613732118,2.38366791,98.109,98.01,51.0132]
[1644613732318,2.38366791,98.109,98.011,5.098]
[1644613732923,36.65523637,98.108,98.011,5.098]
[1644613733721,15.304,98.1,98.03,15.3049]
[1644613735524,2.38366791,98.099,98.02,15.3065]
[1644613735724,15.3066,98.08,98.02,15.3065]
[1644613735924,48.43972092,98.079,98.02,15.3065]
[1644613736526,48.43972092,98.079,98.021,5.099]
[1644613738032,15.3066,98.08,98.021,5.099]
[1644613738829,2.38366791,98.111,98.03,15.3053]
[1644613739031,48.39184909,98.112,98.03,15.3053]
[1644613740532,15.2998,98.13,98.031,2.38366791]
[1644613740734,51.33,98.235,98.031,2.38366791]
[1644613740735,1.4321902,98.17,98.04,12.15]
[1644613740935,2.38366791,98.169,98.07,15.2964]
[1644613741333,2.38366791,98.169,98.071,5.095]
[1644613741537,15.2976,98.14,98.06,50.9878]
[1644613741737,48.59392003,98.139,98.061,5.096]
[1644613741933,48.59392003,98.139,98.06,50.9878]
[1644613742334,48.59392003,98.139,98.042,5.096]
[1644613742633,15.2987,98.13,98.042,5.096]
[1644613742833,15.2987,98.13,98.023,1.42435738]
[1644613743032,2.38366791,98.129,98.023,1.42435738]
[1644613743433,2.38366791,98.129,98.024,1.42435738]
[1644613743635,12.15,98.12,98.024,1.42435738]
[1644613743834,48.1783859,98.119,98.019,1.42435738]
[1644613744034,50.56205381,98.119,98.02,1.42435738]
[1644613744235,2.38366791,98.118,98.021,1.42435738]
[1644613744437,44.26284733,98.099,98.021,1.42435738]
[1644613744635,44.26284733,98.099,98.002,9.7378226]
[1644613744636,44.26284733,98.099,98.023,1.42435738]
[1644613744933,2.38366791,98.098,98.022,1.42435738]
[1644613745133,2.38366791,98.098,98.023,1.42435738]
[1644613745332,15.3083,98.08,98.022,1.42435738]
[1644613745633,40.15749152,98.079,97.986,5.099]
[1644613745933,12.15,98.07,97.935,2.84871476]
[1644613746132,12.15,98.07,97.914,2.84871476]
[1644613746332,2.38366791,98.069,97.904,2.84871476]
[1644613746532,2.38366791,98.069,97.903,2.84871476]
[1644613746533,37.92516529,98.059,97.903,2.84871476]
[1644613746733,12.15,98.05,97.891,2.84871476]
[1644613746937,12.15,98.05,97.898,2.84871476]
[1644613747133,12.15,98.05,97.883,113.0]
[1644613747134,42.91556357,98.04,97.889,5.103]
[1644613747333,12.15,98.03,97.884,5.103]
[1644613747735,15.3254,98.01,97.884,5.103]
[1644613747936,46.5102978,98.009,97.884,5.103]
[1644613748134,48.89396571,98.009,97.884,5.103]
[1644613748336,2.38366791,98.008,97.884,5.103]
[1644613749242,46.5102978,98.009,97.89,15.3248]
[1644613749441,46.5102978,98.009,97.891,4.03881659]
[1644613749742,46.5102978,98.009,97.891,6.4224845]
[1644613749939,46.5102978,98.009,97.89,12.15]
[1644613749940,46.5102978,98.009,97.892,6.4224845]
[1644613750140,46.5102978,98.009,97.92,15.3178]
[1644613750343,46.5102978,98.009,97.921,5.103]
[1644613750540,46.5102978,98.009,97.921,7.48666791]
[1644613750938,46.5102978,98.009,97.92,113.0]
[1644613751137,46.5102978,98.009,97.921,5.103]
[1644613751344,15.3208,98.0,97.921,5.103]
[1644613751942,15.3208,98.0,97.901,24.2749]
[1644613752139,15.3208,98.0,97.902,5.104]
[1644613753139,5.31559823,97.999,97.902,5.104]
[1644613753340,15.3253,97.98,97.902,5.104]
[1644613753642,45.73363204,97.979,97.902,5.104]
[1644613754041,57.16363204,97.979,97.902,5.104]
[1644613754244,2.38366791,97.978,97.902,5.104]
[1644613755052,15.326,97.97,97.902,5.104]
[1644613755640,12.15,98.03,97.903,2.38366791]
[1644613756042,2.38366791,98.027,97.903,2.38366791]
[1644613756240,2.86438041,98.081,97.903,2.38366791]
[1644613756444,34.75616558,98.017,97.904,24.9649]
[1644613756643,60.3714,98.069,97.91,12.15]
[1644613757048,60.3714,98.069,97.924,113.0]
[1644613757245,15.3178,98.03,97.94,15.3162]
[1644613757644,43.47417338,98.029,97.94,15.3162]
[1644613757845,43.47417338,98.029,97.94,17.69986791]
[1644613759057,51.33,98.07,97.941,61.78]
[1644613759358,51.33,98.07,97.97,15.3075]
[1644613759561,51.33,98.07,97.971,47.3539]
[1644613759756,51.33,98.07,97.971,49.73756791]
[1644613760057,44.01363854,98.069,97.972,2.38366791]
[1644613760857,44.01363854,98.069,98.0,15.3067]
[1644613761457,43.01363854,98.069,98.0,15.3067]
[1644613762287,2.38366791,98.068,97.971,47.3539]
[1644613763784,15.312,98.06,97.971,47.3539]
[1644613764185,17.69566791,98.06,97.971,47.3539]
[1644613767387,15.312,98.06,97.972,2.38366791]
[1644613767587,43.01363854,98.069,97.973,5.101]
[1644613767987,43.01363854,98.069,97.974,2.38366791]
[1644613768688,43.01363854,98.069,97.98,15.3117]
[1644613771490,43.01363854,98.069,97.981,5.099]
[1644613771690,43.01363854,98.069,97.99,15.3093]
[1644613772795,43.01363854,98.069,97.991,5.099]
[1644613774391,15.3078,98.09,98.0,15.3088]
[1644613774593,7.16095101,98.218,98.0,15.3088]
[1644613774594,47.2342,98.147,98.0,15.3088]
[1644613774796,2.38366791,98.123,98.001,55.72796791]
[1644613775192,2.38366791,98.123,98.002,2.38366791]
[1644613775392,48.57671802,98.122,98.003,5.098]
[1644613775593,48.57671802,98.122,98.003,27.996]
[1644613775795,15.3046,98.11,98.03,15.3042]
[1644613776093,15.3046,98.11,98.031,5.098]
[1644613776693,15.3046,98.11,98.032,24.6144]
[1644613779799,15.3046,98.11,98.03,15.3042]
[1644613780597,15.3046,98.11,98.031,23.1356]
[1644613780797,15.3046,98.11,98.032,5.098]
[1644613784210,15.3046,98.11,98.04,15.3036]
[1644613784407,2.38366791,98.141,98.041,5.098]
[1644613784607,2.86438041,98.179,98.041,7.48166791]
[1644613784808,2.38366791,98.177,98.042,2.38366791]
[1644613785006,2.38366791,98.177,98.043,5.096]
[1644613785305,43.38298105,98.157,98.043,5.096]
[1644613785506,43.38298105,98.157,98.044,2.38366791]
[1644613785705,15.2968,98.15,98.06,15.3]
[1644613785906,15.2968,98.15,98.061,46.7138]
[1644613786105,2.38366791,98.149,98.061,46.7138]
[1644613787507,15.2983,98.14,98.061,46.7138]
[1644613787706,45.44381705,98.139,98.061,46.7138]
[1644613787931,45.44381705,98.139,98.062,5.096]
[1644613789815,15.3002,98.13,98.07,15.2992]
[1644613790216,2.38366791,98.16,98.07,15.2992]
[1644613790414,2.86438041,98.208,98.071,24.3602]
[1644613790614,23.0981,98.215,98.071,24.3602]
[1644613790615,23.0981,98.215,98.071,26.74386791]
[1644613790814,23.0981,98.215,98.072,2.38366791]
[1644613791014,43.63283056,98.214,98.072,2.38366791]
[1644613791214,43.63283056,98.214,98.073,24.9621]
[1644613791615,43.63283056,98.214,98.074,2.38366791]
[1644613791818,37.46322611,98.199,98.13,15.2888]
[1644613792217,37.46322611,98.199,98.111,46.5572]
[1644613792822,37.46322611,98.199,98.13,15.2901]
[1644613793724,37.46322611,98.199,98.111,46.5572]
[1644613795746,37.46322611,98.199,98.12,15.2916]
[1644613796748,37.46322611,98.199,98.111,46.5572]
[1644613800854,37.46322611,98.199,98.1,15.2948]
[1644613801256,37.46322611,98.199,98.07,15.2226]
[1644613801454,37.46322611,98.199,98.08,12.15]
[1644613801656,37.46322611,98.199,98.13,15.2903]
[1644613801856,37.46322611,98.199,98.09,12.15]
[1644613802455,37.46322611,98.199,98.09,63.1238]
[1644613802858,37.46322611,98.199,98.091,23.0403]
[1644613803057,37.46322611,98.199,98.091,28.1343]
[1644613805161,37.46322611,98.199,98.11,15.2933]
[1644613806860,37.46322611,98.199,98.12,15.292]
[1644613807865,37.46322611,98.199,98.121,24.5052]
[1644613810768,37.46322611,98.199,98.15,15.2866]
[1644613811369,37.46322611,98.199,98.105,5.093]
[1644613811569,48.64322611,98.199,98.105,5.093]
[1644613811768,25.782417,98.198,98.105,5.093]
[1644613813769,25.782417,98.198,98.09,15.2972]
[1644613813971,37.46322611,98.199,98.091,22.9762]
[1644613815205,39.84689402,98.199,98.076,23.3005]
[1644613815411,48.82689402,98.199,98.076,23.3005]
[1644613815804,46.44322611,98.199,98.076,23.3005]
[1644613816204,46.44322611,98.199,98.09,15.2962]
[1644613816404,46.44322611,98.199,98.091,23.0991]
[1644613817609,2.38366791,98.198,98.091,23.0991]
[1644613817809,15.3298115,98.19,98.08,15.2985]
[1644613818012,27.4798115,98.19,98.08,15.2985]
[1644613818610,2.38366791,98.189,98.08,15.2985]
[1644613818808,15.2994,98.16,98.081,5.095]
[1644613819011,41.52882572,98.159,98.081,5.095]
[1644613820812,15.2991,98.14,98.081,5.095]
[1644613821116,41.77195259,98.139,98.081,5.095]
[1644613821312,41.77195259,98.139,98.08,15.2985]
[1644613821714,15.2985,98.14,98.081,5.096]
[1644613822920,15.2963,98.15,98.09,15.2975]
[1644613823321,15.2963,98.15,98.091,5.095]
[1644613823718,15.2963,98.15,98.083,5.095]
[1644613823923,15.3242115,98.17,98.1,15.2957]
[1644613824220,0.0309115,98.18,98.101,30.35176791]
[1644613824618,0.0309115,98.18,98.101,27.9681]
[1644613825645,0.0309115,98.18,98.102,2.38366791]
[1644613825841,15.3227115,98.18,98.12,15.2919]
[1644613826040,15.2918,98.18,98.12,15.2919]
[1644613827341,15.2918,98.18,98.121,5.094]
[1644613827642,15.2918,98.18,98.13,15.2912]
[1644613828244,15.2903,98.19,98.13,15.2912]
[1644613828443,42.62078953,98.179,98.13,15.2912]
[1644613830444,15.2903,98.19,98.13,15.2912]
[1644613831044,15.2903,98.19,98.12,15.2923]
[1644613831246,5.31282882,98.189,98.12,15.2923]
[1644613831550,5.31282882,98.189,98.113,23.8097]
[1644613831551,47.62821452,98.169,98.113,23.8097]
[1644613831744,57.09821452,98.169,98.113,23.8097]
[1644613832344,57.09821452,98.169,98.12,15.2928]
[1644613832746,9.47,98.169,98.12,15.2928]
[1644613832946,15.2912,98.18,98.12,15.2928]
[1644613833748,44.25567834,98.179,98.12,15.2928]
[1644613835149,15.2912,98.18,98.12,15.2928]
[1644613838256,36.09094672,98.181,98.12,15.2928]
[1644613838453,15.2899,98.19,98.12,15.2928]
[1644613838659,0.0309115,98.21,98.121,5.093]
[1644613838853,50.9604,98.23,98.16,15.2867]
[1644613838854,0.0309115,98.22,98.16,15.2867]
[1644613839055,50.9913115,98.23,98.16,15.2867]
[1644613839555,36.31105086,98.229,98.16,15.2867]
[1644613840154,15.2859,98.22,98.16,15.2867]
[1644613843057,15.2859,98.22,98.15,15.2877]
[1644613844761,36.31105086,98.229,98.15,2.38366791]
[1644613845159,0.0309115,98.26,98.16,12.15]
[1644613845359,0.0309115,98.24,98.16,12.15]
[1644613845658,0.0309115,98.26,98.161,7.47366791]
[1644613845861,15.2797,98.26,98.19,15.282]
[1644613846060,15.3106115,98.26,98.191,28.8576]
[1644613846260,45.66883766,98.259,98.191,28.8576]
[1644613846457,45.66883766,98.259,98.191,23.7676]
[1644613847062,45.66883766,98.259,98.2,15.2801]
[1644613851563,15.3083115,98.28,98.201,5.09]
[1644613851867,15.2774,98.28,98.201,5.09]
[1644613852062,15.2774,98.28,98.192,5.089]
[1644613852263,15.2774,98.28,98.191,23.7676]
[1644613852463,37.10819522,98.279,98.191,23.7676]
[1644613852662,37.10819522,98.279,98.21,15.2784]
[1644613852862,37.10819522,98.279,98.211,22.8418]
[1644613853062,0.02024077,98.258,98.211,22.8418]
[1644613857164,0.02024077,98.258,98.22,15.2772]
[1644613858164,0.02025934,98.279,98.22,15.2772]
[1644613858367,0.02025934,98.279,98.23,15.2746]
[1644613858566,0.02025934,98.279,98.231,22.9642]
[1644613859365,0.02025934,98.279,98.24,15.2731]
[1644613859569,0.02025934,98.279,98.231,22.9642]
[1644613860765,0.02025934,98.279,98.26,15.2698]
[1644613861167,0.02025934,98.279,98.261,27.6231]
[1644613861368,22.7503,98.376,98.262,44.0]
[1644613861369,0.0309115,98.34,98.262,44.0]
[1644613861567,0.0309115,98.32,98.263,5.086]
[1644613861767,0.0309115,98.35,98.264,24.6898]
[1644613861969,0.0309115,98.37,98.265,5.085]
[1644613862171,15.2950115,98.37,98.29,15.2641]
[1644613862371,6.12169821,98.369,98.291,24.1475]
[1644613863172,15.2652,98.36,98.291,24.1475]
[1644613863371,34.78273897,98.359,98.291,24.1475]
[1644613863571,34.78273897,98.359,98.291,24.0475]
[1644613864777,15.2669,98.35,98.291,24.0475]
[1644613867000,34.78273897,98.359,98.291,24.0475]
[1644613868199,34.78273897,98.359,98.291,23.5475]
[1644613868600,34.78273897,98.359,98.3,15.2638]
[1644613870002,34.78273897,98.359,98.301,5.083]
[1644613870200,34.78273897,98.359,98.31,15.2626]
[1644613873103,34.78273897,98.359,98.3,15.264]
[1644613873508,34.78273897,98.359,98.292,5.083]
[1644613873803,34.78273897,98.359,98.291,23.5475]
[1644613874303,34.78273897,98.359,98.292,5.085]
[1644613874903,2.38366791,98.358,98.292,5.085]
[1644613875903,34.78273897,98.359,98.292,5.085]
[1644613877706,34.78273897,98.359,98.31,15.2625]
[1644613878105,34.78273897,98.359,98.291,23.5475]
[1644613880706,15.2669,98.35,98.291,23.5475]
[1644613882019,24.3169,98.35,98.27,15.2686]
[1644613882207,24.3169,98.35,98.26,15.2703]
[1644613882610,39.859,98.35,98.26,15.2703]
[1644613884010,39.859,98.35,98.265,24.4456]
[1644613884209,39.859,98.35,98.261,5.086]
[1644613884410,39.859,98.35,98.26,15.2703]
[1644613885610,39.859,98.35,98.25,15.2717]
[1644613885811,0.0309115,98.34,98.251,5.086]
[1644613886012,15.3028115,98.34,98.251,5.086]
[1644613886215,34.63836475,98.339,98.251,5.086]
[1644613888513,34.63836475,98.339,98.242,46.4621]
[1644613888814,15.2733,98.31,98.242,46.4621]
[1644613889015,39.23041307,98.309,98.242,46.4621]
[1644613889213,39.23041307,98.309,98.243,5.087]
[1644613890716,15.2752,98.3,98.243,5.087]
[1644613891517,15.2752,98.3,98.221,5.087]
[1644613891714,15.3061115,98.3,98.223,5.088]
[1644613891914,15.3061115,98.3,98.219,6.47768886]
[1644613892115,15.3061115,98.3,98.218,1.38968886]
[1644613892315,15.3061115,98.3,98.219,5.088]
[1644613892514,15.3061115,98.3,98.217,1.38968886]
[1644613892714,15.3061115,98.3,98.22,2.38366791]
[1644613892915,15.3061115,98.3,98.221,24.295]
[1644613893120,15.3061115,98.3,98.222,5.088]
[1644613893315,15.3061115,98.3,98.222,7.47166791]
[1644613893515,15.3061115,98.3,98.222,5.088]
[1644613893718,2.38366791,98.299,98.222,5.088]
[1644613893915,15.2822,98.29,98.222,5.088]
[1644613894115,35.61682101,98.289,98.222,5.088]
[1644613894321,38.00048892,98.289,98.18,1.38968886]
[1644613894617,0.0309115,98.28,98.177,22.9747]
[1644613894816,0.0309115,98.28,98.178,5.089]
[1644613895015,2.38366791,98.279,98.178,5.089]
[1644613895216,0.0309115,98.27,98.18,15.2822]
[1644613896919,2.38366791,98.269,98.178,5.089]
[1644613897118,47.74937555,98.268,98.178,5.089]
[1644613897523,2.38366791,98.267,98.178,5.089]
[1644613898122,2.38366791,98.267,98.16,15.2852]
[1644613898520,2.38366791,98.267,98.161,5.09]
[1644613899021,2.38366791,98.267,98.154,5.09]
[1644613899221,11.42366791,98.267,98.154,5.09]
[1644613899621,2.38366791,98.266,98.154,5.09]
[1644613900823,9.69366791,98.266,98.154,5.09]
[1644613901223,2.38366791,98.265,98.154,5.09]
[1644613901427,2.38366791,98.265,98.153,24.4084]
[1644613901624,2.38366791,98.265,98.121,24.1121]
[1644613901824,2.38366791,98.265,98.143,5.091]
[1644613902024,2.38366791,98.265,98.122,5.091]
[1644613902222,15.06183652,98.264,98.122,5.091]
[1644613902422,12.15,98.25,98.122,5.091]
[1644613902624,43.07804558,98.249,98.111,5.091]
[1644613902822,45.46171349,98.249,98.111,5.091]
[1644613903333,2.38366791,98.248,98.111,5.091]
[1644613903724,15.2927,98.24,98.112,47.8048]
[1644613903924,27.4427,98.24,98.113,5.091]
[1644613904223,2.38366791,98.239,98.113,5.091]
[1644613904522,2.38366791,98.239,98.143,113.0]
[1644613904728,2.38366791,98.239,98.144,5.091]
[1644613904927,2.38366791,98.239,98.114,5.091]
[1644613905124,15.2921,98.23,98.114,5.091]
[1644613905426,37.20696402,98.229,98.114,5.091]
[1644613905624,39.59063193,98.229,98.114,5.091]
[1644613905831,12.15,98.22,98.114,5.091]
[1644613906225,2.38366791,98.219,98.114,5.091]
[1644613906424,15.2961,98.21,98.114,5.091]
[1644613906627,48.78761024,98.209,98.114,5.091]
[1644613906826,51.17127815,98.209,98.114,5.091]
[1644613907028,2.38366791,98.208,98.114,5.091]
[1644613907325,2.38366791,98.208,98.112,47.8048]
[1644613907729,15.2961,98.2,98.112,47.8048]
[1644613908129,2.38366791,98.199,98.112,47.8048]
[1644613908936,1.38366791,98.199,98.112,47.8048]
[1644613909137,2.38366791,98.198,98.112,47.8048]
[1644613909337,2.38366791,98.199,98.113,5.093]
[1644613909537,2.38366791,98.199,98.112,47.8048]
[1644613910137,27.4461,98.2,98.112,47.8048]
[1644613910340,48.78761024,98.209,98.112,47.8048]
[1644613910536,48.78761024,98.209,98.113,2.38366791]
[1644613911742,48.78761024,98.209,98.13,15.2896]
[1644613912541,48.78761024,98.209,98.131,22.8323]
[1644613913341,48.78761024,98.209,98.132,5.093]
[1644613914639,48.78761024,98.209,98.131,22.8323]
[1644613915653,51.17127815,98.209,98.131,22.8323]
[1644613915858,48.78761024,98.209,98.131,22.8323]
[1644613918257,48.78761024,98.209,98.132,5.093]
[1644613918858,27.18026791,98.233,98.132,5.093]
[1644613919057,24.7966,98.233,98.133,2.38366791]
[1644613919260,24.7966,98.233,98.141,113.0]
[1644613919657,15.5918,98.25,98.142,2.38366791]
[1644613919858,61.70638394,98.249,98.15,15.2859]
[1644613920458,2.38366791,98.248,98.15,15.2859]
[1644613921760,15.2874,98.24,98.15,15.2859]
[1644613922159,2.38366791,98.239,98.15,15.2859]
[1644613922361,2.38366791,98.239,98.144,5.091]
[1644613922659,2.38366791,98.239,98.143,48.0231]
[1644613922861,2.38366791,98.239,98.144,5.091]
[1644613923061,2.38366791,98.239,98.143,48.0231]
[1644613923764,15.2891,98.23,98.143,48.0231]
[1644613923962,15.2891,98.23,98.144,5.091]
[1644613924162,2.38366791,98.229,98.144,5.091]
[1644613924565,38.90738394,98.249,98.146,1.38968886]
[1644613924766,38.90738394,98.249,98.155,1.38968886]
[1644613924966,38.90738394,98.249,98.157,1.38968886]
[1644613925164,38.90738394,98.249,98.158,26.25558886]
[1644613925463,38.90738394,98.249,98.18,15.2815]
[1644613925663,38.90738394,98.249,98.18,128.2815]
[1644613926266,38.90738394,98.249,98.181,23.9426]
[1644613929666,2.38366791,98.248,98.161,5.09]
[1644613929869,2.38366791,98.248,98.145,24.3589]
[1644613930068,23.9076,98.247,98.132,5.091]
[1644613930266,39.7552143,98.247,98.123,1.38968886]
[1644613930467,2.38366791,98.246,98.119,1.38968886]